[Event "Titled Tuesday Blitz July 25 Late 2023"]
[White "Chor, Kevin"]
[Black "Jahnz, Fabian"]
[WhiteFideId "2090740"]
[BlackFideId "4653300"]
[WhiteElo "2525"]
[BlackElo "2111"]
[Result "1-0"]
[Round "1"]
[TimeControl "180+2"]
[Date "2023.07.25"]
[WhiteClock "0:01:03"]
[BlackClock "0:01:24"]
[Board "186"]

1. e4 {[%clk 0:02:59]}  c6 {[%clk 0:03:00]} 2. d4 {[%clk 0:02:59]}  d5 {[%clk 0:03:00]} 3. exd5 {[%clk 0:03:00]}  cxd5 {[%clk 0:03:01]} 4. c4 {[%clk 0:03:00]}  Nf6 {[%clk 0:03:01]} 5. Nc3 {[%clk 0:03:00]}  Nc6 {[%clk 0:03:02]} 6. Bf4 {[%clk 0:02:57]}  Be6 {[%clk 0:02:59]} 7. c5 {[%clk 0:02:54]}  g6 {[%clk 0:02:57]} 8. Nf3 {[%clk 0:02:52]}  Bg7 {[%clk 0:02:58]} 9. Bb5 {[%clk 0:02:49]}  O-O {[%clk 0:02:57]} 10. Bxc6 {[%clk 0:02:46]}  bxc6 {[%clk 0:02:58]} 11. Ne5 {[%clk 0:02:47]}  Bd7 {[%clk 0:02:57]} 12. O-O {[%clk 0:02:45]}  h6 {[%clk 0:02:55]} 13. Re1 {[%clk 0:02:35]}  Re8 {[%clk 0:02:49]} 14. b4 {[%clk 0:02:32]}  Qc8 {[%clk 0:02:41]} 15. Qd2 {[%clk 0:02:24]}  g5 {[%clk 0:02:35]} 16. Bg3 {[%clk 0:02:24]}  Nh5 {[%clk 0:02:33]} 17. a4 {[%clk 0:02:22]}  Nxg3 {[%clk 0:02:33]} 18. hxg3 {[%clk 0:02:12]}  Rb8 {[%clk 0:02:33]} 19. Rab1 {[%clk 0:02:07]}  f6 {[%clk 0:02:30]} 20. Nxd7 {[%clk 0:02:00]}  Qxd7 {[%clk 0:02:28]} 21. b5 {[%clk 0:02:01]}  e5 {[%clk 0:02:25]} 22. dxe5 {[%clk 0:01:53]}  fxe5 {[%clk 0:02:26]} 23. bxc6 {[%clk 0:01:52]}  Qxc6 {[%clk 0:02:25]} 24. Qxd5+ {[%clk 0:01:51]}  Qxd5 {[%clk 0:02:25]} 25. Nxd5 {[%clk 0:01:51]}  Rxb1 {[%clk 0:02:22]} 26. Rxb1 {[%clk 0:01:51]}  e4 {[%clk 0:02:16]} 27. c6 {[%clk 0:01:41]}  Be5 {[%clk 0:02:13]} 28. Rb7 {[%clk 0:01:41]}  a5 {[%clk 0:02:12]} 29. c7 {[%clk 0:01:27]}  e3 {[%clk 0:01:57]} 30. fxe3 {[%clk 0:01:19]}  Kf8 {[%clk 0:01:53]} 31. Nb6 {[%clk 0:01:18]}  Bxc7 {[%clk 0:01:52]} 32. Rxc7 {[%clk 0:01:18]}  Rxe3 {[%clk 0:01:52]} 33. Rc5 {[%clk 0:01:15]}  Rxg3 {[%clk 0:01:50]} 34. Rxa5 {[%clk 0:01:15]}  h5 {[%clk 0:01:49]} 35. Kf2 {[%clk 0:01:14]}  h4 {[%clk 0:01:48]} 36. Rf5+ {[%clk 0:01:09]}  Ke7 {[%clk 0:01:47]} 37. Rf3 {[%clk 0:01:10]}  Rg4 {[%clk 0:01:47]} 38. a5 {[%clk 0:01:08]}  Kd6 {[%clk 0:01:43]} 39. a6 {[%clk 0:01:06]}  h3 {[%clk 0:01:24]} 40. gxh3 {[%clk 0:01:03]} 1-0


[Site "https://www.chess.com"]

[Event "Titled Tuesday Blitz July 25 Late 2023"]
[White "Attacker_2006"]
[Black "Tarnowska, Aleksandra"]
[BlackFideId "1180967"]
[WhiteElo "2519"]
[BlackElo "2100"]
[Result "1-0"]
[Round "1"]
[TimeControl "180+2"]
[Date "2023.07.25"]
[WhiteClock "0:00:59"]
[BlackClock "0:01:00"]
[Board "188"]

1. e4 {[%clk 0:02:42]}  c5 {[%clk 0:02:58]} 2. Nc3 {[%clk 0:02:41]}  g6 {[%clk 0:02:54]} 3. d4 {[%clk 0:02:09]}  d6 {[%clk 0:02:35]} 4. dxc5 {[%clk 0:02:04]}  dxc5 {[%clk 0:02:35]} 5. Qxd8+ {[%clk 0:02:04]}  Kxd8 {[%clk 0:02:36]} 6. Be3 {[%clk 0:02:04]}  e6 {[%clk 0:02:27]} 7. O-O-O+ {[%clk 0:02:05]}  Ke8 {[%clk 0:02:24]} 8. Nf3 {[%clk 0:01:43]}  Bd7 {[%clk 0:02:12]} 9. Ne5 {[%clk 0:01:32]}  Nf6 {[%clk 0:02:10]} 10. Nxd7 {[%clk 0:01:23]}  Nfxd7 {[%clk 0:02:09]} 11. Nb5 {[%clk 0:01:21]}  Na6 {[%clk 0:02:09]} 12. Nd6+ {[%clk 0:01:20]}  Bxd6 {[%clk 0:02:08]} 13. Rxd6 {[%clk 0:01:21]}  Ke7 {[%clk 0:02:07]} 14. Rd2 {[%clk 0:01:20]}  Rhd8 {[%clk 0:02:03]} 15. Bxa6 {[%clk 0:01:19]}  bxa6 {[%clk 0:02:04]} 16. Rhd1 {[%clk 0:01:20]}  Rac8 {[%clk 0:02:01]} 17. e5 {[%clk 0:01:11]}  Ke8 {[%clk 0:01:31]} 18. Bg5 {[%clk 0:01:06]}  a5 {[%clk 0:01:22]} 19. Bxd8 {[%clk 0:01:03]}  Rxd8 {[%clk 0:01:23]} 20. f4 {[%clk 0:01:03]}  Ke7 {[%clk 0:01:23]} 21. c3 {[%clk 0:01:03]}  h5 {[%clk 0:01:24]} 22. h4 {[%clk 0:01:03]}  a4 {[%clk 0:01:23]} 23. Kc2 {[%clk 0:01:03]}  a5 {[%clk 0:01:18]} 24. Rd6 {[%clk 0:01:03]}  Ke8 {[%clk 0:01:14]} 25. b3 {[%clk 0:01:00]}  axb3+ {[%clk 0:01:14]} 26. axb3 {[%clk 0:01:01]}  Ke7 {[%clk 0:01:12]} 27. Kb2 {[%clk 0:01:01]}  a4 {[%clk 0:01:10]} 28. Rxd7+ {[%clk 0:00:56]}  Rxd7 {[%clk 0:01:10]} 29. Rxd7+ {[%clk 0:00:57]}  Kxd7 {[%clk 0:01:11]} 30. bxa4 {[%clk 0:00:58]}  Kc6 {[%clk 0:01:04]} 31. Kb3 {[%clk 0:00:58]}  Kb6 {[%clk 0:01:04]} 32. Kc4 {[%clk 0:00:57]}  Ka5 {[%clk 0:01:03]} 33. Kxc5 {[%clk 0:00:58]}  Kxa4 {[%clk 0:01:04]} 34. c4 {[%clk 0:00:56]}  Ka5 {[%clk 0:01:03]} 35. Kd6 {[%clk 0:00:56]}  Kb6 {[%clk 0:01:03]} 36. c5+ {[%clk 0:00:56]}  Kb7 {[%clk 0:01:04]} 37. Kd7 {[%clk 0:00:57]}  Kb8 {[%clk 0:01:00]} 38. c6 {[%clk 0:00:58]}  f5 {[%clk 0:01:00]} 39. c7+ {[%clk 0:00:58]}  Ka7 {[%clk 0:01:00]} 40. c8=Q {[%clk 0:00:59]} 1-0


[Site "https://www.chess.com"]

[Event "Titled Tuesday Blitz July 25 Late 2023"]
[White "Gyulamiryan-koryun"]
[Black "Deng, Henry"]
[BlackFideId "30965454"]
[WhiteElo "2056"]
[BlackElo "2516"]
[Result "0-1"]
[Round "1"]
[TimeControl "180+2"]
[Date "2023.07.25"]
[WhiteClock "0:00:18"]
[BlackClock "0:00:25"]
[Board "193"]

1. e4 {[%clk 0:02:52]}  c5 {[%clk 0:02:52]} 2. Be2 {[%clk 0:02:50]}  Nc6 {[%clk 0:02:48]} 3. f4 {[%clk 0:02:49]}  e6 {[%clk 0:02:48]} 4. c3 {[%clk 0:02:46]}  d5 {[%clk 0:02:48]} 5. e5 {[%clk 0:02:45]}  Nh6 {[%clk 0:02:43]} 6. Nf3 {[%clk 0:02:44]}  Be7 {[%clk 0:02:33]} 7. O-O {[%clk 0:02:42]}  O-O {[%clk 0:02:31]} 8. d3 {[%clk 0:02:41]}  b5 {[%clk 0:02:27]} 9. a3 {[%clk 0:02:40]}  Qb6 {[%clk 0:02:18]} 10. Kh1 {[%clk 0:02:37]}  Ba6 {[%clk 0:02:12]} 11. b4 {[%clk 0:02:34]}  d4 {[%clk 0:02:09]} 12. bxc5 {[%clk 0:02:30]}  Bxc5 {[%clk 0:02:09]} 13. cxd4 {[%clk 0:02:30]}  Nxd4 {[%clk 0:02:09]} 14. Nxd4 {[%clk 0:02:27]}  Bxd4 {[%clk 0:02:09]} 15. Ra2 {[%clk 0:02:27]}  Bb7 {[%clk 0:02:00]} 16. Bf3 {[%clk 0:02:23]}  Nf5 {[%clk 0:01:56]} 17. Bxb7 {[%clk 0:02:21]}  Qxb7 {[%clk 0:01:56]} 18. Qf3 {[%clk 0:02:20]}  Qe7 {[%clk 0:01:48]} 19. Bb2 {[%clk 0:02:09]}  Rfd8 {[%clk 0:01:42]} 20. g4 {[%clk 0:02:07]}  Bxb2 {[%clk 0:01:41]} 21. gxf5 {[%clk 0:02:04]}  Bd4 {[%clk 0:01:39]} 22. fxe6 {[%clk 0:01:50]}  Qxe6 {[%clk 0:01:36]} 23. Rg2 {[%clk 0:01:47]}  Qd5 {[%clk 0:01:26]} 24. Nd2 {[%clk 0:01:42]}  Qxf3 {[%clk 0:01:18]} 25. Rxf3 {[%clk 0:01:38]}  Rac8 {[%clk 0:01:16]} 26. h3 {[%clk 0:01:31]}  f5 {[%clk 0:00:59]} 27. exf6 {[%clk 0:01:29]}  Bxf6 {[%clk 0:00:58]} 28. Ne4 {[%clk 0:01:29]}  Bd4 {[%clk 0:00:57]} 29. f5 {[%clk 0:01:25]}  Rc1+ {[%clk 0:00:41]} 30. Kh2 {[%clk 0:01:23]}  Be5+ {[%clk 0:00:41]} 31. Rgg3 {[%clk 0:01:23]}  Bxg3+ {[%clk 0:00:41]} 32. Rxg3 {[%clk 0:01:23]}  Rc2+ {[%clk 0:00:41]} 33. Kg1 {[%clk 0:01:22]}  h6 {[%clk 0:00:38]} 34. f6 {[%clk 0:01:20]}  g5 {[%clk 0:00:38]} 35. h4 {[%clk 0:01:17]}  Kf7 {[%clk 0:00:33]} 36. hxg5 {[%clk 0:01:16]}  hxg5 {[%clk 0:00:33]} 37. Nxg5+ {[%clk 0:01:16]}  Kxf6 {[%clk 0:00:33]} 38. Ne4+ {[%clk 0:01:12]}  Ke5 {[%clk 0:00:33]} 39. Nf2 {[%clk 0:01:11]}  Rf8 {[%clk 0:00:31]} 40. Re3+ {[%clk 0:01:01]}  Kd4 {[%clk 0:00:30]} 41. Re4+ {[%clk 0:01:01]}  Kd5 {[%clk 0:00:30]} 42. Ng4 {[%clk 0:00:54]}  Rd2 {[%clk 0:00:21]} 43. Ne3+ {[%clk 0:00:50]}  Kd6 {[%clk 0:00:21]} 44. d4 {[%clk 0:00:50]}  Rg8+ {[%clk 0:00:20]} 45. Kf1 {[%clk 0:00:49]}  Rf8+ {[%clk 0:00:20]} 46. Ke1 {[%clk 0:00:48]}  Rh2 {[%clk 0:00:21]} 47. Rg4 {[%clk 0:00:41]}  Re8 {[%clk 0:00:21]} 48. Rg3 {[%clk 0:00:39]}  Ra2 {[%clk 0:00:20]} 49. Kd1 {[%clk 0:00:38]}  Kc7 {[%clk 0:00:20]} 50. d5 {[%clk 0:00:37]}  Rxa3 {[%clk 0:00:19]} 51. d6+ {[%clk 0:00:36]}  Kd8 {[%clk 0:00:18]} 52. Kd2 {[%clk 0:00:34]}  Raxe3 {[%clk 0:00:18]} 53. Rxe3 {[%clk 0:00:33]}  Rxe3 {[%clk 0:00:18]} 54. Kxe3 {[%clk 0:00:33]}  Kd7 {[%clk 0:00:19]} 55. Kd4 {[%clk 0:00:34]}  Kxd6 {[%clk 0:00:20]} 56. Kc3 {[%clk 0:00:34]}  Kc5 {[%clk 0:00:21]} 57. Kb3 {[%clk 0:00:34]}  a5 {[%clk 0:00:22]} 58. Ka3 {[%clk 0:00:34]}  Kc4 {[%clk 0:00:21]} 59. Kb2 {[%clk 0:00:34]}  Kb4 {[%clk 0:00:22]} 60. Ka2 {[%clk 0:00:33]}  Kc3 {[%clk 0:00:22]} 61. Ka3 {[%clk 0:00:33]}  b4+ {[%clk 0:00:22]} 62. Ka2 {[%clk 0:00:33]}  Kc2 {[%clk 0:00:22]} 63. Ka1 {[%clk 0:00:32]}  Kb3 {[%clk 0:00:22]} 64. Kb1 {[%clk 0:00:32]}  Ka3 {[%clk 0:00:23]} 65. Ka1 {[%clk 0:00:32]}  b3 {[%clk 0:00:23]} 66. Kb1 {[%clk 0:00:32]}  b2 {[%clk 0:00:24]} 67. Kc2 {[%clk 0:00:32]}  Ka2 {[%clk 0:00:24]} 68. Kc3 {[%clk 0:00:32]}  b1=Q {[%clk 0:00:25]} 69. Kc4 {[%clk 0:00:18]}  Qb4+ {[%clk 0:00:25]} 0-1


[Site "https://www.chess.com"]

[Event "Titled Tuesday Blitz July 25 Late 2023"]
[White "Rizzo, Tobias"]
[Black "Winkels, Marcel"]
[WhiteFideId "30942691"]
[BlackFideId "1003887"]
[WhiteElo "2516"]
[BlackElo "2052"]
[Result "1-0"]
[Round "1"]
[TimeControl "180+2"]
[Date "2023.07.25"]
[WhiteClock "0:01:32"]
[BlackClock "0:01:21"]
[Board "194"]

1. d4 {[%clk 0:02:28]}  Nf6 {[%clk 0:02:55]} 2. Bg5 {[%clk 0:02:26]}  c5 {[%clk 0:02:53]} 3. d5 {[%clk 0:02:25]}  Qb6 {[%clk 0:02:54]} 4. Nc3 {[%clk 0:02:25]}  d6 {[%clk 0:02:52]} 5. e4 {[%clk 0:02:25]}  g6 {[%clk 0:02:52]} 6. Bxf6 {[%clk 0:02:23]}  exf6 {[%clk 0:02:52]} 7. Qd2 {[%clk 0:02:23]}  Bg7 {[%clk 0:02:52]} 8. Nf3 {[%clk 0:02:23]}  O-O {[%clk 0:02:52]} 9. Be2 {[%clk 0:02:24]}  f5 {[%clk 0:02:49]} 10. Na4 {[%clk 0:02:17]}  Qb5 {[%clk 0:02:44]} 11. Bxb5 {[%clk 0:02:17]}  fxe4 {[%clk 0:02:32]} 12. Ng5 {[%clk 0:02:12]}  a6 {[%clk 0:02:25]} 13. Nb6 {[%clk 0:02:11]}  Ra7 {[%clk 0:02:24]} 14. Bc4 {[%clk 0:02:06]}  Bf5 {[%clk 0:02:21]} 15. h4 {[%clk 0:02:02]}  h5 {[%clk 0:02:20]} 16. O-O-O {[%clk 0:01:59]}  Nd7 {[%clk 0:02:17]} 17. Qa5 {[%clk 0:01:58]}  Ne5 {[%clk 0:02:13]} 18. Rhe1 {[%clk 0:01:54]}  Re8 {[%clk 0:02:08]} 19. Nxe4 {[%clk 0:01:43]}  Nxc4 {[%clk 0:02:04]} 20. Nf6+ {[%clk 0:01:44]}  Bxf6 {[%clk 0:02:02]} 21. Rxe8+ {[%clk 0:01:43]}  Kg7 {[%clk 0:02:02]} 22. Nxc4 {[%clk 0:01:44]}  b5 {[%clk 0:02:00]} 23. Nxd6 {[%clk 0:01:42]}  Bg4 {[%clk 0:01:55]} 24. f3 {[%clk 0:01:41]}  Bd7 {[%clk 0:01:55]} 25. Qb6 {[%clk 0:01:37]}  Bxe8 {[%clk 0:01:47]} 26. Nxe8+ {[%clk 0:01:38]}  Kf8 {[%clk 0:01:46]} 27. Qxa7 {[%clk 0:01:32]}  Kxe8 {[%clk 0:01:46]} 28. Qxc5 {[%clk 0:01:32]}  Kd7 {[%clk 0:01:43]} 29. Re1 {[%clk 0:01:32]}  Bxh4 {[%clk 0:01:21]} 30. Qc6+ {[%clk 0:01:32]} 1-0


[Site "https://www.chess.com"]

[Event "Titled Tuesday Blitz July 25 Late 2023"]
[White "Van Foreest, Machteld"]
[Black "Blackwhite017"]
[WhiteFideId "1051563"]
[WhiteElo "2514"]
[BlackElo "2035"]
[Result "1-0"]
[Round "1"]
[TimeControl "180+2"]
[Date "2023.07.25"]
[WhiteClock "0:00:57"]
[BlackClock "0:00:35"]
[Board "196"]

1. e4 {[%clk 0:02:58]}  c5 {[%clk 0:03:00]} 2. Nf3 {[%clk 0:02:58]}  d6 {[%clk 0:02:59]} 3. d4 {[%clk 0:02:57]}  cxd4 {[%clk 0:02:59]} 4. Nxd4 {[%clk 0:02:56]}  Nf6 {[%clk 0:02:59]} 5. Nc3 {[%clk 0:02:56]}  g6 {[%clk 0:02:59]} 6. Be3 {[%clk 0:02:55]}  Bg7 {[%clk 0:02:59]} 7. Be2 {[%clk 0:02:53]}  O-O {[%clk 0:02:59]} 8. O-O {[%clk 0:02:53]}  d5 {[%clk 0:02:59]} 9. e5 {[%clk 0:02:49]}  Ne8 {[%clk 0:02:54]} 10. f4 {[%clk 0:02:22]}  f6 {[%clk 0:02:53]} 11. e6 {[%clk 0:02:09]}  f5 {[%clk 0:02:39]} 12. Bf3 {[%clk 0:02:02]}  Nc7 {[%clk 0:02:33]} 13. Re1 {[%clk 0:01:50]}  Nc6 {[%clk 0:02:31]} 14. Qd2 {[%clk 0:01:24]}  Rf6 {[%clk 0:02:02]} 15. Rad1 {[%clk 0:01:19]}  Nxd4 {[%clk 0:02:00]} 16. Bxd4 {[%clk 0:01:20]}  Rxe6 {[%clk 0:01:59]} 17. Bxg7 {[%clk 0:01:18]}  Kxg7 {[%clk 0:02:00]} 18. Nxd5 {[%clk 0:01:17]}  Rxe1+ {[%clk 0:01:54]} 19. Qxe1 {[%clk 0:01:18]}  Nxd5 {[%clk 0:01:50]} 20. Qe5+ {[%clk 0:01:17]}  Kh6 {[%clk 0:01:39]} 21. Bxd5 {[%clk 0:01:10]}  Qd6 {[%clk 0:01:02]} 22. Qh8 {[%clk 0:00:57]}  Rb8 {[%clk 0:00:38]} 23. Qf8+ {[%clk 0:00:56]}  Kh5 {[%clk 0:00:36]} 24. Bf3+ {[%clk 0:00:56]}  Kh4 {[%clk 0:00:35]} 25. Qh6# {[%clk 0:00:57]} 1-0


[Site "https://www.chess.com"]

[Event "Titled Tuesday Blitz July 25 Late 2023"]
[White "Gasparyan, David"]
[Black "zano2023"]
[WhiteFideId "13311980"]
[WhiteElo "2509"]
[BlackElo "2002"]
[Result "1-0"]
[Round "1"]
[TimeControl "180+2"]
[Date "2023.07.25"]
[WhiteClock "0:00:17"]
[BlackClock "0:00:11"]
[Board "200"]

1. Nf3 {[%clk 0:02:55]}  d6 {[%clk 0:02:59]} 2. g3 {[%clk 0:02:54]}  e5 {[%clk 0:02:58]} 3. Bg2 {[%clk 0:02:54]}  Nf6 {[%clk 0:02:59]} 4. d3 {[%clk 0:02:53]}  Be7 {[%clk 0:02:59]} 5. O-O {[%clk 0:02:53]}  O-O {[%clk 0:02:59]} 6. Nc3 {[%clk 0:02:52]}  c6 {[%clk 0:02:53]} 7. e4 {[%clk 0:02:52]}  Nbd7 {[%clk 0:02:50]} 8. h3 {[%clk 0:02:49]}  Re8 {[%clk 0:02:50]} 9. a4 {[%clk 0:02:47]}  Nf8 {[%clk 0:02:50]} 10. Be3 {[%clk 0:02:44]}  Ng6 {[%clk 0:02:50]} 11. a5 {[%clk 0:02:43]}  h6 {[%clk 0:02:44]} 12. d4 {[%clk 0:02:41]}  Bd7 {[%clk 0:02:38]} 13. Re1 {[%clk 0:02:36]}  Qc8 {[%clk 0:02:38]} 14. dxe5 {[%clk 0:02:26]}  dxe5 {[%clk 0:02:34]} 15. Kh2 {[%clk 0:02:24]}  Rd8 {[%clk 0:02:34]} 16. Qe2 {[%clk 0:02:22]}  Be6 {[%clk 0:02:32]} 17. Red1 {[%clk 0:02:13]}  Qc7 {[%clk 0:02:28]} 18. Nd2 {[%clk 0:02:08]}  Bb4 {[%clk 0:02:05]} 19. a6 {[%clk 0:02:01]}  b6 {[%clk 0:02:02]} 20. Ra4 {[%clk 0:01:45]}  Qe7 {[%clk 0:01:59]} 21. Ndb1 {[%clk 0:01:29]}  Rxd1 {[%clk 0:01:55]} 22. Nxd1 {[%clk 0:01:29]}  Bc5 {[%clk 0:01:53]} 23. Bxc5 {[%clk 0:01:27]}  Qxc5 {[%clk 0:01:52]} 24. Nbc3 {[%clk 0:01:26]}  b5 {[%clk 0:01:49]} 25. Ra1 {[%clk 0:01:24]}  Rd8 {[%clk 0:01:48]} 26. Qe3 {[%clk 0:01:22]}  Nd7 {[%clk 0:01:35]} 27. Qf3 {[%clk 0:01:10]}  Nb6 {[%clk 0:01:30]} 28. Ne3 {[%clk 0:01:09]}  Ne7 {[%clk 0:01:27]} 29. Nf5 {[%clk 0:01:08]}  Nxf5 {[%clk 0:01:24]} 30. exf5 {[%clk 0:01:08]}  Bd5 {[%clk 0:01:17]} 31. Nxd5 {[%clk 0:01:08]}  cxd5 {[%clk 0:01:13]} 32. f6 {[%clk 0:01:00]}  g6 {[%clk 0:01:09]} 33. c3 {[%clk 0:00:55]}  e4 {[%clk 0:01:08]} 34. Qf4 {[%clk 0:00:54]}  Kh7 {[%clk 0:01:07]} 35. Rd1 {[%clk 0:00:53]}  Nc4 {[%clk 0:00:59]} 36. Bxe4 {[%clk 0:00:42]}  Nxb2 {[%clk 0:00:53]} 37. Rd4 {[%clk 0:00:41]}  Nc4 {[%clk 0:00:50]} 38. h4 {[%clk 0:00:34]}  Qd6 {[%clk 0:00:39]} 39. Qxd6 {[%clk 0:00:30]}  Rxd6 {[%clk 0:00:36]} 40. Rxd5 {[%clk 0:00:28]}  Rxf6 {[%clk 0:00:31]} 41. Rxb5 {[%clk 0:00:28]}  Rxa6 {[%clk 0:00:29]} 42. Rb7 {[%clk 0:00:24]}  Nd6 {[%clk 0:00:29]} 43. Re7 {[%clk 0:00:22]}  Nxe4 {[%clk 0:00:25]} 44. Rxe4 {[%clk 0:00:21]}  Ra3 {[%clk 0:00:21]} 45. Re7 {[%clk 0:00:19]}  Kg7 {[%clk 0:00:21]} 46. Rc7 {[%clk 0:00:19]}  a5 {[%clk 0:00:21]} 47. c4 {[%clk 0:00:18]}  Ra2 {[%clk 0:00:21]} 48. Kg2 {[%clk 0:00:17]}  a4 {[%clk 0:00:21]} 49. Ra7 {[%clk 0:00:17]}  a3 {[%clk 0:00:21]} 50. Kf3 {[%clk 0:00:16]}  Rc2 {[%clk 0:00:21]} 51. Rxa3 {[%clk 0:00:16]}  Rxc4 {[%clk 0:00:21]} 52. Re3 {[%clk 0:00:17]}  Ra4 {[%clk 0:00:20]} 53. Kg2 {[%clk 0:00:18]}  h5 {[%clk 0:00:20]} 54. Rd3 {[%clk 0:00:18]}  Rb4 {[%clk 0:00:20]} 55. Rc3 {[%clk 0:00:18]}  Ra4 {[%clk 0:00:20]} 56. Rf3 {[%clk 0:00:18]}  Rb4 {[%clk 0:00:21]} 57. Re3 {[%clk 0:00:19]}  Ra4 {[%clk 0:00:21]} 58. Re5 {[%clk 0:00:20]}  Rb4 {[%clk 0:00:21]} 59. Kf3 {[%clk 0:00:20]}  Ra4 {[%clk 0:00:22]} 60. Re3 {[%clk 0:00:21]}  Rb4 {[%clk 0:00:22]} 61. Rd3 {[%clk 0:00:21]}  Ra4 {[%clk 0:00:22]} 62. Ke3 {[%clk 0:00:22]}  Rb4 {[%clk 0:00:22]} 63. Rc3 {[%clk 0:00:22]}  Ra4 {[%clk 0:00:23]} 64. Rd3 {[%clk 0:00:21]}  Rb4 {[%clk 0:00:23]} 65. Kf3 {[%clk 0:00:19]}  Ra4 {[%clk 0:00:23]} 66. Re3 {[%clk 0:00:20]}  Rb4 {[%clk 0:00:23]} 67. Re4 {[%clk 0:00:20]}  Rxe4 {[%clk 0:00:20]} 68. Kxe4 {[%clk 0:00:21]}  Kf6 {[%clk 0:00:20]} 69. Kf4 {[%clk 0:00:18]}  Kg7 {[%clk 0:00:19]} 70. Ke5 {[%clk 0:00:18]}  f6+ {[%clk 0:00:18]} 71. Ke6 {[%clk 0:00:18]}  g5 {[%clk 0:00:17]} 72. f3 {[%clk 0:00:15]}  gxh4 {[%clk 0:00:16]} 73. gxh4 {[%clk 0:00:16]}  Kg6 {[%clk 0:00:17]} 74. f4 {[%clk 0:00:16]}  Kg7 {[%clk 0:00:15]} 75. f5 {[%clk 0:00:16]}  Kf8 {[%clk 0:00:12]} 76. Kxf6 {[%clk 0:00:16]}  Kg8 {[%clk 0:00:11]} 77. Ke7 {[%clk 0:00:17]} 1-0


[Site "https://www.chess.com"]

[Event "Titled Tuesday Blitz July 25 Late 2023"]
[White "Cnejev, Vladimir-Alexandru"]
[Black "Lutz, Igor Oscar"]
[WhiteFideId "1260898"]
[BlackFideId "2110806"]
[WhiteElo "2508"]
[BlackElo "1930"]
[Result "1-0"]
[Round "1"]
[TimeControl "180+2"]
[Date "2023.07.25"]
[WhiteClock "0:00:36"]
[BlackClock "0:00:09"]
[Board "202"]

1. Nf3 {[%clk 0:02:59]}  d5 {[%clk 0:02:48]} 2. b3 {[%clk 0:02:59]}  c5 {[%clk 0:02:43]} 3. Bb2 {[%clk 0:02:59]}  Nc6 {[%clk 0:02:44]} 4. e3 {[%clk 0:02:59]}  Nf6 {[%clk 0:02:44]} 5. Bb5 {[%clk 0:03:00]}  Bd7 {[%clk 0:02:44]} 6. h3 {[%clk 0:02:58]}  a6 {[%clk 0:02:44]} 7. Bxc6 {[%clk 0:02:59]}  Bxc6 {[%clk 0:02:45]} 8. Ne5 {[%clk 0:02:59]}  Qc7 {[%clk 0:02:44]} 9. d4 {[%clk 0:02:35]}  e6 {[%clk 0:02:40]} 10. Nd2 {[%clk 0:02:32]}  Bd6 {[%clk 0:02:39]} 11. Nxc6 {[%clk 0:02:24]}  Qxc6 {[%clk 0:02:28]} 12. dxc5 {[%clk 0:02:15]}  Bxc5 {[%clk 0:02:23]} 13. O-O {[%clk 0:02:16]}  Be7 {[%clk 0:02:20]} 14. c4 {[%clk 0:02:15]}  dxc4 {[%clk 0:02:19]} 15. Nxc4 {[%clk 0:02:14]}  Rd8 {[%clk 0:02:18]} 16. Qe2 {[%clk 0:02:12]}  O-O {[%clk 0:02:17]} 17. Rac1 {[%clk 0:02:12]}  Qe4 {[%clk 0:02:12]} 18. Ne5 {[%clk 0:02:02]}  Rc8 {[%clk 0:01:51]} 19. f3 {[%clk 0:01:59]}  Qh4 {[%clk 0:01:46]} 20. Qd3 {[%clk 0:01:53]}  Rfd8 {[%clk 0:01:40]} 21. Rxc8 {[%clk 0:01:51]}  Rxc8 {[%clk 0:01:40]} 22. f4 {[%clk 0:01:46]}  Nd5 {[%clk 0:01:32]} 23. Kh2 {[%clk 0:01:40]}  Bf6 {[%clk 0:01:29]} 24. g3 {[%clk 0:01:25]}  Qh5 {[%clk 0:01:20]} 25. g4 {[%clk 0:01:20]}  Qh4 {[%clk 0:01:07]} 26. Nf3 {[%clk 0:01:16]}  Nb4 {[%clk 0:00:39]} 27. Qe4 {[%clk 0:01:01]}  Rc2+ {[%clk 0:00:26]} 28. Qxc2 {[%clk 0:00:59]}  Nxc2 {[%clk 0:00:27]} 29. Nxh4 {[%clk 0:00:58]}  Bxh4 {[%clk 0:00:09]} 30. Rc1 {[%clk 0:00:36]} 1-0


[Site "https://www.chess.com"]

[Event "Titled Tuesday Blitz July 25 Late 2023"]
[White "Burke, Paul"]
[Black "only_strong_moves"]
[WhiteFideId "2605767"]
[WhiteElo "1915"]
[BlackElo "2507"]
[Result "0-1"]
[Round "1"]
[TimeControl "180+2"]
[Date "2023.07.25"]
[WhiteClock "0:00:38"]
[BlackClock "0:01:37"]
[Board "203"]

1. e4 {[%clk 0:03:00]}  e5 {[%clk 0:02:59]} 2. Nf3 {[%clk 0:03:00]}  Nc6 {[%clk 0:02:58]} 3. Bc4 {[%clk 0:03:00]}  Bc5 {[%clk 0:02:56]} 4. b4 {[%clk 0:03:00]}  Bxb4 {[%clk 0:02:54]} 5. c3 {[%clk 0:03:00]}  Ba5 {[%clk 0:02:54]} 6. d4 {[%clk 0:03:00]}  exd4 {[%clk 0:02:52]} 7. O-O {[%clk 0:03:00]}  Nge7 {[%clk 0:02:46]} 8. Ng5 {[%clk 0:02:59]}  d5 {[%clk 0:02:40]} 9. exd5 {[%clk 0:02:58]}  Ne5 {[%clk 0:02:40]} 10. Bb3 {[%clk 0:02:25]}  O-O {[%clk 0:02:34]} 11. cxd4 {[%clk 0:02:22]}  N5g6 {[%clk 0:02:35]} 12. d6 {[%clk 0:02:05]}  Qxd6 {[%clk 0:02:28]} 13. Ba3 {[%clk 0:01:55]}  Qf6 {[%clk 0:02:26]} 14. Qh5 {[%clk 0:01:49]}  h6 {[%clk 0:02:15]} 15. Bxe7 {[%clk 0:01:36]}  Nxe7 {[%clk 0:02:00]} 16. Nxf7 {[%clk 0:01:33]}  Rxf7 {[%clk 0:01:57]} 17. Bxf7+ {[%clk 0:01:32]}  Qxf7 {[%clk 0:01:58]} 18. Qxf7+ {[%clk 0:01:32]}  Kxf7 {[%clk 0:01:57]} 19. Na3 {[%clk 0:01:29]}  Be6 {[%clk 0:01:53]} 20. Nc2 {[%clk 0:01:16]}  Nd5 {[%clk 0:01:50]} 21. Ne3 {[%clk 0:01:14]}  Nf4 {[%clk 0:01:48]} 22. g3 {[%clk 0:01:11]}  Ne2+ {[%clk 0:01:48]} 23. Kg2 {[%clk 0:01:10]}  Nxd4 {[%clk 0:01:49]} 24. Rfd1 {[%clk 0:01:05]}  c5 {[%clk 0:01:48]} 25. Rab1 {[%clk 0:01:03]}  b6 {[%clk 0:01:45]} 26. f4 {[%clk 0:01:00]}  Re8 {[%clk 0:01:38]} 27. f5 {[%clk 0:00:38]}  Bxa2 {[%clk 0:01:37]} 0-1


[Site "https://www.chess.com"]